Cogmind - Beta 13 @@@ ROGUE MODE // 2024.06.10 @ 09:10:12 Player: DuckBoy Result: Destroyed by G-47 Trooper with Particle Gun Performance ------------- Evolutions (2) 1000 Regions Visited (6) 1200 Robots Destroyed (55) 275 Value Destroyed (1510) 1510 Prototype IDs (26) 520 Alien Tech Used (0) 0 Bonus (260) 260 TOTAL SCORE: 4765 Bonus ------- Follower Combat Kills 60 Entered Garrisons 200 Cogmind --------- Core Integrity 0/550 Matter 208/300 Energy 159/160 System Corruption 0% Temperature Cool (11) Movement Flying (32) Location -8/Garrison Parts ------- > --- POWER (1) -------- Light Nuclear Core > --- PROPULSION (2) --- Cesium-ion Thruster Surge Thruster > --- UTILITY (6) ------ Machine Analyzer Hacking Suite Hacking Suite Makeshift Hacking Suite > --- WEAPON (2) ------- (None) > --- INVENTORY (5) ---- Heavy Ion Engine Improved VTOL Module EM Pulse Cannon Guided Plasma Cannon Improved Datajack Peak State ------------ > --- POWER ------------ Heavy Ion Engine > --- PROPULSION ------- Light Treads Compact Wheel > --- UTILITY ---------- Improved Heat Sink Advanced Heat Sink Huge Storage Unit Machine Analyzer Hardened Medium Armor Plating Corruption Screen > --- WEAPON ----------- Lightning Gun Heavy Particle Cannon > --- INVENTORY -------- Improved Ion Engine Heavy Ion Engine Heavy Ion Engine Wheel Cesium-ion Thruster Cesium-ion Thruster Improved VTOL Module Improved VTOL Module Hardened Medium Armor Plating Hacking Suite Hacking Suite Makeshift Hacking Suite Corruption Screen Lightning Gun Lightning Gun EM Pulse Cannon Heavy Particle Cannon Heavy Particle Cannon Guided Plasma Cannon Shock Bomb Launcher Improved Datajack Plasma Cutter [Rating: 38] Favorites ----------- Power Light Nuclear Core Engine Light Ion Engine Power Core Light Nuclear Core Propulsion Wheel Treads Light Treads Wheel Wheel Flight Unit Cesium-ion Thruster Utility Improved Heat Sink Device Improved Heat Sink Storage Huge Storage Unit Processor Corruption Screen Hackware Hacking Suite Protection Hardened Medium Armor Plating Weapon Assault Rifle Energy Gun Lightning Gun Energy Cannon Advanced Beam Cannon Ballistic Gun Assault Rifle Launcher Rocket Launcher Build | -11 -10 -10 -10 -9 -8 -8 ------- Run | Yrd Mat Min Exi Min Mat Gar Slots Evolved 4 | . . . . . 4 . Power . | . . . . . . . Propulsion . | . . . . . . . Utility 4 | . . . . . 4 . Weapon . | . . . . . . . Parts Attached 79 | 6 4 4 . 8 35 22 Power 13 | 1 1 . . 2 6 3 Engine 7 | 1 1 . . . 3 2 Core 6 | . . . . 2 3 1 Reactor . | . . . . . . . Propulsion 18 | 2 . 1 . 1 10 4 Treads 6 | . . . . . 4 2 Leg . | . . . . . . . Wheel 9 | 2 . 1 . 1 5 . Hover . | . . . . . . . Flight 3 | . . . . . 1 2 Utility 27 | 1 1 2 . 1 12 10 Device 8 | . . 1 . 1 5 1 Storage 5 | 1 1 1 . . 2 . Processor 3 | . . . . . 3 . Hackware 3 | . . . . . . 3 Protection 8 | . . . . . 2 6 Artifact . | . . . . . . . Weapon 21 | 2 2 1 . 4 7 5 Energy Gun 4 | 1 . . . . 1 2 Energy Cannon 7 | . . . . 1 4 2 Ballistic Gun 8 | 1 2 1 . 2 2 . Ballistic Cannon . | . . . . . . . Launcher 2 | . . . . 1 . 1 Special Weapon . | . . . . . . . Impact Weapon . | . . . . . . . Slashing Weapon . | . . . . . . . Piercing Weapon . | . . . . . . . Special Melee Weapon . | . . . . . . . Unidentified Prototypes 3 | . . . . . 3 . Corrupted Parts 1 | . . . . 1 . . System Corruption 1 | . . . . 1 . . Parts Lost 29 | . 2 . . 1 16 10 Power 4 | . . . . . 4 . Propulsion 7 | . 1 . . . 4 2 Utility 8 | . . . . . 4 4 Weapon 10 | . 1 . . 1 4 4 Highest Loss Streak 8 | . 1 . . 1 8 5 To Critical Strikes . | . . . . . . . Average Slot Usage (%) 90 | . 93 99 100 100 86 80 Engine 6 | . 14 14 14 2 1 7 Core 4 | . . . . 11 6 . Treads 1 | . . . . . 2 4 Wheel 19 | . 25 27 28 28 14 6 Device 16 | . . 13 14 14 22 12 Storage 11 | . 24 14 14 14 9 7 Processor 5 | . . . . . 8 16 Protection 3 | . . . . . 4 7 Energy Gun 1 | . 3 . . . 1 4 Energy Cannon 6 | . . . . . 11 7 Ballistic Gun 11 | . 24 28 28 25 2 . Naked Turns . | . . . . . . . Heaviest Build 108 | 11 21 27 27 32 108 108 Greatest Support 40 | 20 20 20 20 22 40 26 Greatest Overweight (x) 9 | . 2 2 1 1 9 6 Average Overweight (x) 1 | . 1 . 1 1 3 2 Largest Inventory Capacity 25 | 8 10 15 15 15 25 25 Average Capacity 19 | 7 9 14 15 15 24 20 Most Carried 25 | 5 10 11 15 15 25 25 Average Carried 17 | 1 6 10 13 14 22 18 Final Capacity 25 | 8 10 15 15 15 25 5 Final Carried 24 | 5 10 11 15 15 24 5 Class Distribution -------------------- 70% | Mutant 12% | Commander-Mutant 11% | Scavenger-Mutant 3% | Derelict-Mutant 3% | Hacker-Sprinter Dominant Class ---------------- Mutant | -10/Materials Mutant | -10/Mines Commander-Mutant | -10/Exiles Mutant | -9/Mines Mutant | -8/Materials Scavenger-Mutant | -8/Garrison Resources | -11 -10 -10 -10 -9 -8 -8 ----------- Run | Yrd Mat Min Exi Min Mat Gar Matter Collected 1264 | 214 214 24 44 271 384 113 Remotely . | . . . . . . . Salvage Created 2101 | 22 432 27 35 118 1195 272 Parts 119 | 2 27 3 . 7 60 20 Haulers Intercepted 4 | . 1 . . . 3 . Recyclers Shooed 1 | . . . . . 1 . Parts Field Recycled . | . . . . . . . Retrieved Matter . | . . . . . . . Parts Self-Destructed . | . . . . . . . Prevented . | . . . . . . . Kills | -11 -10 -10 -10 -9 -8 -8 ------- Run | Yrd Mat Min Exi Min Mat Gar Combat Hostiles Destroyed 46 | . 10 . . 12 17 7 Guns 24 | . 10 . . 7 4 3 Cannons 15 | . . . . 1 10 4 AOE 4 | . . . . 4 . . Classes Destroyed 13 | 1 4 . . 2 5 1 Worker 1 | . . . . . 1 . Tunneler 2 | 1 . 1 . . . . Hauler 4 | . 1 . . . 3 . Recycler 2 | . . . . . 2 . Operator 5 | . 2 . . . 3 . Watcher 1 | . . . . . 1 . Swarmer 10 | . 3 . . 4 3 . Cutter 3 | . . . . . . 3 Grunt 17 | . 7 . . 1 6 3 Sentry 7 | . . . . . 6 1 Demolisher 1 | . . . . 1 . . Hunter 2 | . . . . . 2 . Assembled 6 | . . . . 6 . . Best Kill Streak 6 | 1 5 1 . 6 3 2 Combat Bots Only 6 | . 4 . . 6 3 2 Max Kills in Single Turn 2 | 1 1 1 . 2 1 1 Gunslinging 1 | . . . . 1 . . Exploded 1 | . . . . 1 . . Melee . | . . . . . . . Uniques/NPCs Destroyed . | . . . . . . . Combat | -11 -10 -10 -10 -9 -8 -8 -------- Run | Yrd Mat Min Exi Min Mat Gar Hostile Shots Fired 297 | . 44 . . 39 138 76 Missed 76 | . 10 . . 17 30 19 Damage Taken 3358 | . 366 . . 287 1536 1169 Core 671 | . 58 . . 50 252 311 Absorbed by Shields . | . . . . . . . Core Remaining (%) 78 | 100 . . . 56 . . Volleys Fired 218 | 1 49 2 5 26 110 25 Largest 2 | 2 2 2 2 2 2 2 Hottest 143 | 60 60 40 40 120 143 143 Shots Fired 354 | 2 97 4 10 38 163 40 Gun 208 | 2 97 4 10 23 61 11 Cannon 133 | . . . . 2 102 29 Launcher 13 | . . . . 13 . . Special . | . . . . . . . Kinetic 146 | 1 79 4 10 23 29 . Thermal 124 | . . . . 2 94 28 Explosive 13 | . . . . 13 . . Electromagnetic 71 | 1 18 . . . 40 12 Robot Hit Streak 12 | 1 9 6 7 7 12 6 Robot Miss Streak 6 | . 3 . 2 5 6 4 Penetration Max 1 | . . . . . 1 . Secondary Targets 4 | . 1 . . 3 . . Max Gunslinging Chain 1 | . 1 . . 1 . . Shots Hit Robots 213 | 1 62 3 6 21 97 23 Core Hits 93 | 1 22 2 2 21 32 13 Critical Kills 3 | . . . . . 3 . Critical Parts Destroyed . | . . . . . . . Critical Strikes 4 | . . . . . 4 . Meltdown 3 | . . . . . 3 . Corrupt 1 | . . . . . 1 . Melee Attacks . | . . . . . . . Impact . | . . . . . . . Slashing . | . . . . . . . Piercing . | . . . . . . . Sneak Attacks . | . . . . . . . Combat Hostiles . | . . . . . . . Follow-up Attacks . | . . . . . . . Damage Inflicted 4270 | 13 731 36 99 724 2108 559 Guns 1814 | 13 664 36 99 192 670 140 Cannons 1896 | . . . . 71 1406 419 Explosions 560 | . 67 . . 461 32 . Melee . | . . . . . . . Ramming . | . . . . . . . Kinetic 1048 | . 505 36 99 192 216 . Thermal 1926 | . 67 . . 71 1369 419 Explosive 461 | . . . . 461 . . Electromagnetic 835 | 13 159 . . . 523 140 Impact . | . . . . . . . Slashing . | . . . . . . . Piercing . | . . . . . . . Highest Corruption 1 | . . . . 1 . . Average Corruption 1 | . . . . 1 . . Corruption Purged . | . . . . . . . Corruption Blocked 8 | . . . . . 1 7 Overload Shots . | . . . . . . . Overflow Damage 40 | . . . . 12 28 . Projectiles 30 | . . . . 2 28 . Explosions 10 | . . . . 10 . . Melee . | . . . . . . . Knockbacks . | . . . . . . . Impact . | . . . . . . . Kinetic . | . . . . . . . Secondary . | . . . . . . . Self-Inflicted Damage 132 | . . . . 39 93 . Shots 4 | . . . . 2 2 . Rammed . | . . . . . . . Targets Rammed . | . . . . . . . Kicked . | . . . . . . . Crushed . | . . . . . . . Highest Temperature 354 | 20 132 . . 112 354 281 Average Temperature 68 | 15 46 . . 49 66 97 Received Heat Transfer 872 | . 144 . . 35 450 243 Effects 2 | . . . . . . 2 Interference 2 | . . . . . . 2 Siege Activations . | . . . . . . . Robots Corrupted 1 | . . . . . 1 . Combat Hostiles 1 | . . . . . 1 . Parts Fried 2 | . . . . . 2 . Impact Corruptions . | . . . . . . . Robots Melted 3 | . . . . . 3 . Combat Hostiles 2 | . . . . . 2 . Parts Melted 10 | . . . . . 10 . Heat Transferred 3096 | . 50 . . 160 2257 629 Parts Sabotaged . | . . . . . . . Parts Stolen . | . . . . . . . Parts Stripped . | . . . . . . . Power Chain Reactions 4 | . 2 . . . 2 . Alert | -11 -10 -10 -10 -9 -8 -8 ------- Run | Yrd Mat Min Exi Min Mat Gar Peak Influence 318 | 5 318 50 . 199 243 282 Initial 157 | . 3 45 . . . 157 Average 100 | . 168 50 . 101 66 228 Maximum Alert Level 1 | . 1 . . . 1 1 Low Security (%) 83 | 100 61 100 . 100 97 16 Level 1 16 | . 38 . . . 2 83 Level 2 . | . . . . . . . Level 3 . | . . . . . . . Level 4 . | . . . . . . . Level 5 . | . . . . . . . High Security . | . . . . . . . Max Security . | . . . . . . . Squads Dispatched 8 | . 2 . . . 6 . Investigation 3 | . . . . . 3 . Extermination . | . . . . . . . Reinforcement 5 | . 2 . . . 3 . Assault . | . . . . . . . Garrison . | . . . . . . . Intercept . | . . . . . . . Searches Triggered . | . . . . . . . Construction Impeded . | . . . . . . . Haulers Reinforced . | . . . . . . . Active Scanning Responses . | . . . . . . . Cargo Convoy Interrupts . | . . . . . . . Stealth | -11 -10 -10 -10 -9 -8 -8 --------- Run | Yrd Mat Min Exi Min Mat Gar Distress Signals 6 | . 2 . . . 4 . Communications Jammed . | . . . . . . . Distress Signals . | . . . . . . . Times Spotted 83 | . 20 . . 15 33 15 Peak Tracking Total 7 | . 5 . . 4 7 5 Tactical Retreats 4 | . 1 . . . 1 2 Traps | -11 -10 -10 -10 -9 -8 -8 ------- Run | Yrd Mat Min Exi Min Mat Gar Traps Triggered 3 | . . . . . 2 1 Indirectly . | . . . . . . . Trap Hack Attempts . | . . . . . . . Triggered . | . . . . . . . Disarmed . | . . . . . . . Reprogrammed . | . . . . . . . Reused . | . . . . . . . Traps Extracted . | . . . . . . . Installed . | . . . . . . . Triggered . | . . . . . . . Machines | -11 -10 -10 -10 -9 -8 -8 ---------- Run | Yrd Mat Min Exi Min Mat Gar Machines Disabled 3 | . . . . . 3 . Max in Single Turn 2 | . . . . . 2 . Machines Repaired . | . . . . . . . Machines Dismantled . | . . . . . . . Machines Sabotaged . | . . . . . . . Overloaded Fab Kills . | . . . . . . . Hacking | -11 -10 -10 -10 -9 -8 -8 --------- Run | Yrd Mat Min Exi Min Mat Gar Machines Accessed 15 | . 2 . 2 . 11 . Terminals 11 | . 2 . . . 9 . Fabricators . | . . . . . . . Repair Stations . | . . . . . . . Recycling Units . | . . . . . . . Scanalyzers 1 | . . . . . 1 . Garrison Access 1 | . . . . . 1 . Total Hacks 46 | . 5 . 5 . 36 . Successful 29 | . 1 . 5 . 23 . Failed 15 | . 3 . . . 12 . Catastrophic 5 | . . . . . 5 . Database Lockouts 2 | . 1 . . . 1 . Manual 24 | . 5 . 1 . 18 . Terminals 30 | . 5 . . . 25 . Fabricators . | . . . . . . . Repair Stations . | . . . . . . . Recycling Units . | . . . . . . . Scanalyzers 10 | . . . . . 10 . Garrison Access 1 | . . . . . 1 . Terminal Hacks 12 | . 1 . 5 . 6 . Record 4 | . . . 4 . . . Part Schematic 1 | . 1 . . . . . Robot Schematic 1 | . . . . . 1 . Robot Analysis 1 | . . . . . 1 . Branch Access Points 1 | . . . . . 1 . Alert Level 2 | . . . . . 2 . Unreport Threat 1 | . . . . . 1 . Derelict Proto ID Bank 1 | . . . 1 . . . Fabricator Hacks . | . . . . . . . Repair Station Hacks . | . . . . . . . Recycling Unit Hacks . | . . . . . . . Scanalyzer 10 | . . . . . 10 . Insert Component 4 | . . . . . 4 . Analyze 6 | . . . . . 6 . Garrison Access Hacks 1 | . . . . . 1 . Unlock Access 1 | . . . . . 1 . Unauthorized Hacks 6 | . . . . . 6 . Terminals 6 | . . . . . 6 . Track 1 | . . . . . 1 . Botnet 3 | . . . . . 3 . Operators 2 | . . . . . 2 . Fabricators . | . . . . . . . Repair Stations . | . . . . . . . Recycling Units . | . . . . . . . Scanalyzers . | . . . . . . . Garrison Access . | . . . . . . . Data Cores Recovered 1 | . 1 . . . . . Used . | . . . . . . . Hacking Detections 10 | . 2 . . . 8 . Full Trace Events 1 | . . . . . 1 . Feedback Events . | . . . . . . . Feedback Blocked . | . . . . . . . Robot Schematics Acquired 1 | . . . . . 1 . Robots Built . | . . . . . . . Authchips . | . . . . . . . Time . | . . . . . . . Total Robot Build Rating . | . . . . . . . Part Schematics Acquired 5 | . 1 . . . 4 . Parts Built . | . . . . . . . Authchips . | . . . . . . . Time . | . . . . . . . Total Part Build Rating . | . . . . . . . Parts Repaired . | . . . . . . . Time . | . . . . . . . Parts Recycled . | . . . . . . . Recycled Matter . | . . . . . . . Retrieved Matter . | . . . . . . . Retrieved Components . | . . . . . . . Parts Scanalyzed 4 | . . . . . 4 . Part Schematics Acquired 4 | . . . . . 4 . Parts Damaged . | . . . . . . . Bothacking | -11 -10 -10 -10 -9 -8 -8 ------------ Run | Yrd Mat Min Exi Min Mat Gar Used RIF Installer . | . . . . . . . Robots Hacked . | . . . . . . . Non-combat . | . . . . . . . Combat . | . . . . . . . Robot Hacks Applied . | . . . . . . . Relay Couplers Released . | . . . . . . . Fabnet Peak Effective % . | . . . . . . . Robots Rewired 4 | . . . 4 . . . Allies Hacked . | . . . . . . . Hacks Repelled . | . . . . . . . Allies | -11 -10 -10 -10 -9 -8 -8 -------- Run | Yrd Mat Min Exi Min Mat Gar Total Allies 7 | . . 3 4 . . . Largest Group 7 | . . 3 7 7 . . Highest-Rated Group 85 | . . 40 85 85 . . Highest-Rated Ally 21 | . . 16 21 21 . . Total Orders . | . . . . . . . Ally Attacks 20 | . . . . 20 . . Total Damage 210 | . . . . 210 . . Kills 4 | . . . . 4 . . Allies Corrupted . | . . . . . . . Allies Melted . | . . . . . . . Intel | -11 -10 -10 -10 -9 -8 -8 ------- Run | Yrd Mat Min Exi Min Mat Gar Robot Analysis Total 1 | . . . . . 1 . Derelict Logs Recovered 3 | . . 2 . 1 . . Drone Launches . | . . . . . . . Drone Recoveries . | . . . . . . . Exploration | -11 -10 -10 -10 -9 -8 -8 ------------- Run | Yrd Mat Min Exi Min Mat Gar Turns Passed 4262 | 57 431 349 509 447 1989 480 Spaces Moved 2795 | 49 292 345 440 367 980 322 Core 5 | 1 . . . . . 4 Treads 42 | . . . . . 42 . Legs . | . . . . . . . Wheels 2575 | 48 292 345 440 367 938 145 Hover . | . . . . . . . Flight 173 | . . . . . . 173 Fastest Speed 32 | 50 80 80 95 95 100 32 Average Speed 116 | 79 95 93 95 99 151 102 Slowest Speed 480 | 80 110 110 95 100 480 250 Overloaded Moves . | . . . . . . . Propulsion Burnouts . | . . . . . . . Robots Hopped 5 | . . . . . . 5 Cave-ins Triggered . | . . . . . . . Exploration Rate (%) 59 | 4 46 73 90 80 79 42 Regions Visited 6 Branch Regions 3 Pre-discovered Areas 2 | . . . 1 1 . . Known Exits Taken 1 | . . . . . 1 . Unknown Exits Taken 5 | 1 1 1 1 1 . . Scrap Searched 3 | . . 1 . 2 . . Spaces Dug 11 | . . . . . 11 . Terrain Destroyed 164 | . 3 . . 107 54 . Melee . | . . . . . . . Projectile 25 | . . . . . 25 . AOE 139 | . 3 . . 107 29 . Terrain Rammed . | . . . . . . . Walls Destroyed . | . . . . . . . Machines Disabled . | . . . . . . . Actions | -11 -10 -10 -10 -9 -8 -8 --------- Run | Yrd Mat Min Exi Min Mat Gar Total 3459 | 62 355 367 521 409 1323 422 Wait 226 | 2 7 13 21 1 143 39 Move 2780 | 48 291 344 439 366 980 312 Hop 5 | . . . . . . 5 Pick Up 55 | 5 4 1 4 3 36 2 Fast Attach 32 | 6 1 2 . 1 9 13 Attach 25 | . 1 . . 1 14 9 Detach 2 | . . . . . . 2 Swap 22 | . 2 2 . 6 12 . Drop 31 | . . 3 . 5 19 4 Fire 218 | 1 49 2 5 26 110 25 Melee . | . . . . . . . Ram . | . . . . . . . Kick . | . . . . . . . Crush . | . . . . . . . Escape Stasis 11 | . . . . . . 11 Rewire 52 | . . . 52 . . . Trap . | . . . . . . . Miscellaneous . | . . . . . . . Route ------- -11/Scrapyard -10/Materials (discovered 2 exits: [*Mat] / [*Min]) -10/Mines (discovered 3 exits: [*Mat] / *Exi / Sub) -10/Exiles -9/Mines -8/Materials (discovered 2 exits: [*Fac] / Gar) -8/Garrison (discovered 1 exit: [*Mat]) History --------- Turn | Location | Event 18 | -11/Scrapyard | Discovered new exit (range 16) 58 | -11/Scrapyard | Entered Materials 70 | -10/Materials | Central database locked down 245 | -10/Materials | Discovered new exit (range 15) 314 | -10/Materials | Build established: Mutant 476 | -10/Materials | Discovered new exit (range 6) 489 | -10/Materials | Entered Mines 518 | -10/Mines | Discovered new exit (range 10) 535 | -10/Mines | Assisted by bots powering up and referring to "LRC-V3" 596 | -10/Mines | Learned Materials emergency access door positions 658 | -10/Mines | Received a Rocket Launcher from a helpful Derelict 723 | -10/Mines | Identified exit to Subcaves 823 | -10/Mines | Deemed a non-threat by the Exiles lab entrance 824 | -10/Mines | Discovered new exit (range 5) 838 | -10/Mines | Entered Exiles 838 | -10/Exiles | Found Exiles lab destroyed 838 | -10/Exiles | Accompanied by 3 allies 1127 | -10/Exiles | Learned location of Zion (-6) 1195 | -10/Exiles | Opened EX-Vault 1202 | -10/Exiles | Found Gui. Plasma Cannon 1214 | -10/Exiles | Build established: Commander-Mutant 1324 | -10/Exiles | Discovered new exit (range 12) 1347 | -10/Exiles | Entered Mines 1347 | -9/Mines | Accompanied by 7 allies 1430 | -9/Mines | Assembled infested the area 1675 | -9/Mines | Learned Materials terminal intel 1701 | -9/Mines | Learned location of Storage (-7) 1740 | -9/Mines | Build established: Mutant 1784 | -9/Mines | Discovered new exit (range 4) 1794 | -9/Mines | Entered Materials 1794 | -8/Materials | Evolved 4 slots: Utility x4 1796 | -8/Materials | Loaded intel: 12 terminal locations 1978 | -8/Materials | Lost 3 parts (1u2w) 2198 | -8/Materials | Lost 8 parts (3p2n2u1w) 2795 | -8/Materials | Central database locked down 3637 | -8/Materials | Discovered new exit (range 4) 3783 | -8/Materials | Identified exit to Garrison 3783 | -8/Materials | Entered Garrison 3827 | -8/Garrison | Core integrity fell below 50% 3857 | -8/Garrison | Lost 4 parts (1n2u1w) 4023 | -8/Garrison | Triggered checkpoint 4120 | -8/Garrison | Triggered checkpoint 4155 | -8/Garrison | Core integrity fell below 20% 4195 | -8/Garrison | Lost 5 parts (1n2u2w) 4249 | -8/Garrison | Discovered new exit (range 8) 4253 | -8/Garrison | Triggered checkpoint 4263 | -8/Garrison | Destroyed by G-47 Trooper with Particle Gun Last Messages --------------- 04206_ A bubble of rippling energy engulfs the area. 04206_ Field strength at 92. 04208_ Field strength at 84. 04209_ Field strength at 76. 04210_ Field strength at 68. 04211_ Field strength at 60. 04212_ Field strength at 52. 04213_ Field strength at 44. 04214_ Field strength at 36. 04215_ Field strength at 28. 04216_ Field strength at 20. 04217_ Field strength at 12. 04218_ Field strength at 4. 04219_ Stasis field depleted. 04219_ Acquired Hvy. Ion Engine. 04233_ Acquired Lgt. Nuclear Core. 04237_ Acquired Imp. Datajack. 04249_ EXIT=FOUND 04253_ Beams of light sweep through the air. An alarm sounds. 04255_ B-36 Bruiser springs to life. Map ----- +----------------------------------------------------+ | ?## ## ### #######|#### #??????????????????? | | ?# =/ // ]^ #??????????????????? | | ?# == * =[=]^ #??????????????????? | | ?# *]]!!!=* ] * #??????????????????? | | ?# ## ## ###############??????????????????? | | ?# ## ## ###??????????????????????????????? | | ?" #??????????????????????????????? | | ?" #??????????????????????????????? | | ?" #??????????????????????????????? | | ?" #??????????????????????????????? | | ?# ## ## ###??????????????????????????????? | | ## ## ## #?????????????????#####??????????? | | #?????????????????# #??????????? | | #?????????????????? ???????????? | | ?# #?????????????????? ???????????? | | ?######""""## ##??????????????????# #???????????? | | ????????????# #???????????????????# #???????????? | | ????????????# #???????????????????# #???????????? | | ????????????# #?????????????###???# #???????????? | | ????????????# #????????????? ##??" #???????????? | | ????????????# #?????????????# ???" #???????????? | | ????????????# #?????????????# #???" #???????????? | | ????????????# ########?????##/##??# #???????????? | | ????????????# #?????# #??# #???????????? | | ????????????# ####### g#### #???????????? | | ????????????######## @ #???????????? | | ???????????????????# ################???????????? | | ???????????????????# #??????????????????????????? | | ???????????????????# #??????????????????????????? | | ???????????????????# #??????????????????????????? | | ???????????????????# #??????????????????????????? | | ???????????????????# ??????????????????????????? | | ???????????????????#